bitfinex-derivatives/quotes_BTCF0:USTF0_20241125
["timestamp","ask_amount","ask_price","bid_price","bid_amount"]
[1732576958069,0.3608,93911.0,93910.0,0.053244]
[1732576958371,0.3608,93911.0,93910.0,0.238004]
[1732576958969,0.00913878,93911.0,93910.0,0.239004]
[1732576959367,0.00913878,93911.0,93910.0,0.18576]
[1732576959766,0.00913878,93911.0,93910.0,0.558444]
[1732576959963,0.01,93919.0,93918.0,0.05324]
[1732576960571,0.01,93919.0,93916.0,0.3608]
[1732576960777,0.05324,93918.0,93917.0,0.18476]
[1732576960965,0.05324,93918.0,93916.0,0.3608]
[1732576961165,0.0473,93917.0,93916.0,0.3608]
[1732576961361,0.100541,93917.0,93915.0,0.18476]
[1732576962062,0.0473,93917.0,93915.0,0.238002]
[1732576962278,0.0473,93917.0,93916.0,0.001]
[1732576962972,0.0473,93917.0,93915.0,0.238002]
[1732576962973,0.0473,93917.0,93915.0,0.239002]
[1732576963171,0.0473,93917.0,93916.0,0.001]
[1732576963570,0.0473,93917.0,93915.0,0.239002]
[1732576963771,0.0473,93917.0,93916.0,0.001]
[1732576964469,0.0473,93917.0,93916.0,0.002]
[1732576964670,0.0473,93917.0,93916.0,0.001]
[1732576965070,0.0473,93917.0,93916.0,0.1858]
[1732576965672,0.01,93919.0,93917.0,0.053241]
[1732576967075,0.01,93919.0,93917.0,0.054241]
[1732576967471,0.01,93919.0,93917.0,0.055241]
[1732576968674,0.3608,93918.0,93917.0,0.002]
[1732576968983,0.68024,93918.0,93906.0,0.500607]
[1732576969168,0.68024,93918.0,93899.0,0.00159699]
[1732576969169,0.05325,93901.0,93899.0,0.00159699]
[1732576969373,0.0499,93900.0,93899.0,0.00159699]
[1732576970071,0.0499,93900.0,93896.0,0.053253]
[1732576970072,0.103151,93900.0,93896.0,0.053253]
[1732576970266,0.103151,93900.0,93896.0,0.1848]
[1732576970472,0.103151,93900.0,93898.0,0.053252]
[1732576972074,0.0093969,93899.0,93898.0,0.053252]
[1732576972981,0.01,93897.0,93896.0,0.002]
[1732576973182,0.0193969,93897.0,93896.0,0.001]
[1732576973483,0.01,93872.0,93870.0,0.238068]
[1732576973677,0.3701969,93871.0,93870.0,0.238068]
[1732576973877,0.053269,93869.0,93865.0,0.05327]
[1732576974075,0.053269,93869.0,93844.0,0.2519999]
[1732576974076,0.01,93842.0,93841.0,0.18892912]
[1732576974272,0.38649721,93842.0,93841.0,6.153e-05]
[1732576974673,0.3801969,93842.0,93841.0,6.153e-05]
[1732576974876,0.40568808,93842.0,93841.0,6.153e-05]
[1732576975072,0.77865208,93842.0,93841.0,0.001]
[1732576975377,0.76925518,93842.0,93841.0,0.002]
[1732576975596,0.76925518,93842.0,93808.0,0.0479]
[1732576975597,0.01,93827.0,93817.0,0.053297]
[1732576975773,0.01,93827.0,93810.0,0.3608]
[1732576975774,0.38629118,93826.0,93825.0,0.053293]
[1732576976176,0.38629118,93826.0,93825.0,0.21409835]
[1732576976381,0.02549118,93826.0,93825.0,0.21409835]
[1732576976584,0.02549118,93826.0,93825.0,0.02929835]
[1732576976782,0.02549118,93826.0,93825.0,0.21413835]
[1732576977381,0.02549118,93826.0,93825.0,0.21513835]
[1732576977890,0.02549118,93826.0,93825.0,0.21613835]
[1732576978971,0.0098043,93826.0,93825.0,0.21613835]
[1732576980281,0.0250888,93826.0,93825.0,0.53589835]
[1732576982884,0.0250888,93826.0,93825.0,0.53565835]
[1732576983081,0.0098043,93826.0,93825.0,0.53565835]
[1732576983787,0.0027,93845.0,93844.0,0.053282]
[1732576984083,0.01,93848.0,93847.0,0.053281]
[1732576984474,0.01,93848.0,93847.0,0.372961]
[1732576984675,0.01,93860.0,93857.0,0.053275]
[1732576984979,0.3608,93862.0,93852.0,0.3608]
[1732576985180,0.01,93867.0,93855.0,0.053276]
[1732576985380,0.01,93867.0,93853.0,0.0461]
[1732576985381,0.01,93867.0,93857.0,0.053275]
[1732576985884,0.01,93867.0,93859.0,0.053274]
[1732576986281,0.00126259,93863.0,93859.0,0.053274]
[1732576986585,0.00126259,93863.0,93853.0,0.0461]
[1732576986586,0.01,93852.0,93850.0,0.1846]
[1732576986777,0.01,93842.0,93836.0,0.44832]
[1732576986975,0.01,93842.0,93837.0,0.1846]
[1732576987181,0.01,93832.0,93815.0,0.49392]
[1732576987379,0.053292,93828.0,93817.0,0.053297]
[1732576987778,0.3608,93830.0,93821.0,0.053295]
[1732576988189,0.3608,93830.0,93815.0,0.45436899]
[1732576988190,0.00126259,93826.0,93824.0,0.053294]
[1732576989094,0.00126259,93826.0,93825.0,0.1846]
[1732576990691,0.00126259,93826.0,93825.0,0.1856]
[1732576990990,0.00126259,93826.0,93825.0,0.1866]
[1732576992090,0.00126259,93826.0,93825.0,0.002]
[1732576992294,0.00126259,93826.0,93825.0,0.18664]
[1732576993284,0.00126259,93826.0,93825.0,0.002]
[1732576993487,0.00126259,93826.0,93825.0,0.18664]
[1732576994198,0.3608,93841.0,93825.0,0.5064]
[1732576994400,0.3608,93841.0,93840.0,0.053285]
[1732576994699,0.01,93845.0,93840.0,0.237885]
[1732576995100,0.01,93845.0,93841.0,0.237884]
[1732576995298,0.01,93845.0,93842.0,0.1846]
[1732576995795,0.01,93845.0,93844.0,0.053282]
[1732576996896,0.014,93845.0,93844.0,0.053282]
[1732576997194,0.017,93845.0,93844.0,0.053282]
[1732576997396,0.013,93845.0,93844.0,0.053282]
[1732576997597,0.013,93845.0,93844.0,0.238882]
[1732576998720,0.01,93845.0,93844.0,0.238882]
[1732576998927,0.01,93845.0,93844.0,0.239882]
[1732576999717,0.01,93845.0,93844.0,0.238882]
[1732576999908,0.01,93845.0,93844.0,0.239882]
[1732577000312,0.01,93845.0,93844.0,0.238882]
[1732577000518,0.01,93845.0,93844.0,0.239882]
[1732577000814,0.01,93855.0,93854.0,0.053277]
[1732577001619,0.3608,93864.0,93863.0,0.053272]
[1732577001816,0.01,93853.0,93852.0,0.3608]
[1732577002118,0.01,93853.0,93852.0,0.1846]
[1732577002416,0.01,93853.0,93845.0,0.4478]
[1732577002417,0.053281,93846.0,93845.0,0.4478]
[1732577002618,0.414081,93846.0,93845.0,0.1846]
[1732577003321,0.01,93824.0,93814.0,0.18892912]
[1732577003617,0.01,93814.0,93803.0,0.00159863]
[1732577003825,0.01,93814.0,93812.0,0.0533]
[1732577004005,0.01,93814.0,93813.0,0.18464]
[1732577004514,0.053302,93810.0,93804.0,0.18464]
[1732577004716,0.01,93806.0,93805.0,0.18464]
[1732577004915,0.053305,93804.0,93803.0,0.00159863]
[1732577005108,0.053305,93804.0,93800.0,0.1]
[1732577005109,0.053307,93801.0,93800.0,0.1]
[1732577005911,0.052307,93801.0,93800.0,0.1]
[1732577006211,0.06783814,93801.0,93800.0,0.1]
[1732577006719,0.013,93801.0,93800.0,0.1]
[1732577007019,0.017,93801.0,93800.0,0.1]
[1732577007414,0.015,93801.0,93800.0,0.1]
[1732577008612,0.012,93801.0,93800.0,0.1]
[1732577008811,0.012,93801.0,93766.0,0.18781194]
[1732577008812,0.01,93784.0,93777.0,0.18464]
[1732577009011,0.01,93784.0,93782.0,0.053317]
[1732577009212,0.3708,93784.0,93769.0,0.18464]
[1732577009421,0.3708,93784.0,93766.0,0.414126]
[1732577009422,0.01,93773.0,93766.0,0.414126]
[1732577009621,0.01,93773.0,93766.0,0.3608]
[1732577009816,0.01,93773.0,93771.0,0.053323]
[1732577010511,0.0090731,93772.0,93771.0,0.053323]
[1732577011121,0.0090731,93772.0,93766.0,0.54676]
[1732577011319,0.063323,93773.0,93767.0,0.053326]
[1732577011617,0.063323,93773.0,93766.0,0.54676]
[1732577011618,0.053325,93770.0,93766.0,0.54676]
[1732577011919,0.01,93773.0,93767.0,0.053326]
[1732577012119,0.063323,93773.0,93767.0,0.053326]
[1732577012323,0.0447,93779.0,93766.0,0.3618]
[1732577012620,0.01,93771.0,93770.0,0.053324]
[1732577013912,0.01,93771.0,93770.0,0.054324]
[1732577014113,0.01,93771.0,93770.0,0.001]
[1732577014715,0.37552,93771.0,93770.0,0.001]
[1732577015911,0.37552,93771.0,93760.0,0.05333]
[1732577016116,0.37552,93771.0,93757.0,0.04]
[1732577016117,0.053331,93759.0,93757.0,0.04]
[1732577017228,0.01,93735.0,93734.0,0.053344]
[1732577017526,0.01,93735.0,93727.0,0.3608]
[1732577017527,0.009,93735.0,93727.0,0.3608]
[1732577017728,0.009,93729.0,93728.0,0.05341081]
[1732577018528,0.3608,93743.0,93736.0,0.053343]
[1732577018529,0.009,93740.0,93736.0,0.053343]
[1732577018730,0.009,93740.0,93728.0,0.18450281]
[1732577018731,0.009,93740.0,93734.0,0.053345]
[1732577019023,0.009,93740.0,93728.0,0.18450281]
[1732577019223,0.009,93740.0,93738.0,0.053342]
[1732577020223,0.009,93740.0,93736.0,0.001]
[1732577020424,0.053342,93739.0,93738.0,0.001]
[1732577020628,0.009,93740.0,93738.0,0.001]
[1732577022423,0.009,93740.0,93737.0,0.053343]
[1732577023026,0.009,93740.0,93738.0,0.053342]
[1732577023629,0.07467409,93758.0,93739.0,0.63678]
[1732577023931,0.053332,93757.0,93752.0,0.053334]
[1732577024331,0.02134209,93758.0,93747.0,0.3608]
[1732577024524,0.3608,93763.0,93747.0,0.3608]
[1732577024525,0.3608,93763.0,93748.0,6.281e-05]
[1732577024720,0.3608,93763.0,93759.0,0.05333]
[1732577024929,0.3608,93763.0,93760.0,0.23785]
[1732577025125,0.3608,93763.0,93761.0,0.053329]
[1732577025520,0.00116,93774.0,93772.0,0.053323]
[1732577025719,0.00116,93774.0,93760.0,0.18452]
[1732577025720,0.053318,93782.0,93765.0,0.3608]
[1732577025927,0.053318,93782.0,93766.0,0.045]
[1732577026128,0.053318,93782.0,93767.0,0.053326]
[1732577026331,0.053318,93782.0,93773.0,0.053322]
[1732577026639,0.3608,93789.0,93773.0,0.053322]
[1732577026821,0.05332,93778.0,93773.0,0.053322]
[1732577027321,0.3608,93789.0,93767.0,0.049]
[1732577027521,0.053317,93783.0,93767.0,0.049]
[1732577028030,0.053315,93786.0,93781.0,0.053318]
[1732577028233,0.053315,93786.0,93782.0,0.053317]
[1732577028527,0.3608,93789.0,93780.0,0.18448]
[1732577028731,0.053318,93782.0,93780.0,0.18448]
[1732577030533,0.057318,93782.0,93780.0,0.18448]
[1732577031824,0.006,93782.0,93780.0,0.237798]
[1732577032239,0.059318,93782.0,93780.0,0.053318]
[1732577032437,0.002,93782.0,93781.0,0.18448]
[1732577032737,0.003,93782.0,93781.0,0.18448]
[1732577033139,0.002,93782.0,93781.0,0.18448]
[1732577033340,0.003,93782.0,93781.0,0.18448]
[1732577033838,0.002,93782.0,93781.0,0.18548]
[1732577034235,0.053317,93783.0,93781.0,0.18548]
[1732577034537,0.053317,93783.0,93782.0,0.18448]
[1732577034735,0.053317,93783.0,93782.0,0.00057076]
[1732577034935,0.053319,93780.0,93757.0,0.053332]
[1732577035240,0.31988,93782.0,93754.0,0.18448]
[1732577035241,0.0954529,93760.0,93754.0,0.18448]
[1732577035441,0.21666359,93767.0,93754.0,0.18448]
[1732577035442,0.053333,93755.0,93754.0,0.18448]
[1732577036840,0.0954529,93759.0,93754.0,0.18548]
[1732577037036,0.1487839,93759.0,93757.0,0.053331]
[1732577037536,0.053331,93759.0,93757.0,0.053331]
[1732577038241,0.1487839,93759.0,93757.0,0.053331]
[1732577039333,0.053331,93759.0,93757.0,0.053331]
[1732577039732,0.12727054,93763.0,93755.0,0.18448]
[1732577039931,0.18059954,93763.0,93761.0,0.053329]
[1732577040547,0.12727054,93763.0,93755.0,0.18448]
[1732577040750,0.09558081,93757.0,93755.0,0.237813]
[1732577041645,0.09558081,93758.0,93756.0,0.1842]
[1732577041939,0.09558081,93759.0,93757.0,0.1842]
[1732577042147,0.006627,93763.0,93759.0,0.053331]
[1732577042148,0.09558226,93761.0,93759.0,0.053331]
[1732577042342,0.008627,93763.0,93757.0,0.1842]
[1732577042343,0.002,93763.0,93761.0,0.053329]
[1732577042547,0.002,93763.0,93757.0,0.1842]
[1732577042548,0.09558226,93767.0,93757.0,0.1842]
[1732577042842,0.09558226,93767.0,93766.0,0.053327]
[1732577043048,0.053329,93762.0,93760.0,0.05333]
[1732577043343,0.09557894,93767.0,93762.0,0.053329]
[1732577043546,0.14890594,93766.0,93762.0,0.053329]
[1732577043738,0.053328,93764.0,93762.0,0.053329]
[1732577044638,0.09657894,93766.0,93764.0,0.053327]
[1732577044839,0.001,93766.0,93764.0,0.053327]
[1732577045045,0.001,93766.0,93759.0,0.05979548]
[1732577045243,0.09657894,93766.0,93763.0,0.053328]
[1732577045448,0.001,93764.0,93763.0,0.053328]
[1732577046451,0.001,93764.0,93763.0,0.054328]
[1732577046646,0.45637894,93783.0,93780.0,0.053318]
[1732577046948,0.09557894,93782.0,93761.0,0.3608]
[1732577047244,0.053329,93761.0,93760.0,0.1842]
[1732577047448,0.3608,93765.0,93757.0,0.1842]
[1732577047449,0.053331,93758.0,93757.0,0.1842]
[1732577047645,0.053331,93758.0,93751.0,0.053335]
[1732577047646,0.053331,93758.0,93756.0,0.1842]
[1732577048249,0.45749831,93765.0,93754.0,0.053333]
[1732577048250,0.0955783,93762.0,93754.0,0.053333]
[1732577048546,0.0955783,93762.0,93757.0,0.1842]
[1732577048748,0.0955783,93765.0,93763.0,0.053328]
[1732577048937,0.0955783,93767.0,93763.0,0.053328]
[1732577049138,0.10215302,93770.0,93762.0,0.1842]
[1732577049339,0.00657472,93770.0,93761.0,0.3608]
[1732577049545,0.053325,93770.0,93763.0,0.053328]
[1732577049748,0.053325,93769.0,93763.0,0.053328]
[1732577050037,0.3608,93774.0,93766.0,0.053326]
[1732577050352,0.3608,93774.0,93772.0,0.053323]
[1732577050353,0.4563783,93774.0,93772.0,0.053323]
[1732577050540,0.0955783,93780.0,93773.0,0.545]
[1732577050739,0.0955783,93780.0,93779.0,0.053319]
[1732577050947,0.0955783,93783.0,93774.0,0.2748]
[1732577051451,0.0955783,93782.0,93780.0,0.053319]
[1732577051648,0.0955783,93784.0,93782.0,0.053318]
[1732577051952,0.05331,93797.0,93782.0,0.053318]
[1732577051953,0.02133658,93791.0,93782.0,0.3608]
[1732577052152,0.02133658,93791.0,93790.0,0.3608]
[1732577052338,0.09566448,93799.0,93790.0,0.545]
[1732577052542,0.09566448,93804.0,93798.0,0.053308]
[1732577052747,0.09566448,93806.0,93799.0,0.0919]
[1732577053042,0.00665737,93808.0,93807.0,0.053303]
[1732577053242,0.09566448,93813.0,93807.0,0.1842]
[1732577053446,0.3608,93817.0,93815.0,0.053299]
[1732577054148,0.3608,93817.0,93816.0,0.00013379]
[1732577054149,0.414098,93817.0,93816.0,0.00013379]
[1732577054744,0.50976248,93817.0,93816.0,0.00013379]
[1732577054945,0.418098,93817.0,93816.0,0.00013379]
[1732577056051,0.51361506,93817.0,93816.0,0.00013379]
[1732577056248,0.418098,93817.0,93816.0,0.00013379]
[1732577057145,0.426098,93817.0,93816.0,0.00113379]
[1732577058646,0.418098,93817.0,93816.0,0.00013379]
[1732577058855,0.426098,93817.0,93816.0,0.00113379]
[1732577061351,0.3728,93817.0,93816.0,0.05443179]
[1732577061550,0.012,93817.0,93816.0,0.05443179]
[1732577063353,0.008,93817.0,93816.0,0.05443179]
[1732577063550,0.012,93817.0,93816.0,0.05443179]
[1732577066054,0.414089,93832.0,93816.0,0.68169379]
[1732577066258,0.414089,93832.0,93817.0,0.44804]
[1732577066259,0.3608,93832.0,93817.0,0.44804]
[1732577066554,0.3608,93832.0,93819.0,0.053296]
[1732577066555,0.053292,93827.0,93819.0,0.053296]
[1732577066960,0.3608,93832.0,93819.0,0.053296]
[1732577067168,0.053294,93824.0,93819.0,0.053296]
[1732577067356,0.053294,93824.0,93820.0,0.18412]
[1732577067758,0.053294,93824.0,93821.0,0.23262]
[1732577068768,0.3608,93832.0,93821.0,0.23262]
[1732577069061,0.05329,93830.0,93826.0,0.053292]
[1732577069363,0.3648,93832.0,93828.0,0.053291]
[1732577069669,0.053293,93825.0,93822.0,0.102094]
[1732577070052,0.053292,93827.0,93826.0,0.002]
[1732577070560,0.3608,93832.0,93821.0,0.0485]
[1732577070762,0.053294,93823.0,93822.0,0.18376]
[1732577071156,0.053294,93823.0,93821.0,0.0485]
[1732577071459,0.053297,93818.0,93817.0,0.44804]
[1732577071668,0.053297,93818.0,93816.0,0.00013379]
[1732577072251,0.3608,93823.0,93816.0,0.00013379]
[1732577072459,0.45718521,93832.0,93821.0,0.053295]
[1732577072460,0.053291,93829.0,93821.0,0.053295]
[1732577072661,0.36200001,93832.0,93817.0,0.18376]
[1732577072662,0.3608,93832.0,93822.0,0.0911]
[1732577072866,0.414089,93832.0,93827.0,0.053291]
[1732577073055,0.414089,93832.0,93828.0,0.18376]
[1732577073257,0.3608,93832.0,93828.0,0.18376]
[1732577073459,0.05329,93831.0,93828.0,0.18376]
[1732577073861,0.053291,93830.0,93828.0,0.18376]
[1732577074464,0.053291,93830.0,93828.0,0.18476]
[1732577074971,0.3608,93832.0,93828.0,0.18476]
[1732577075156,0.05329,93830.0,93829.0,0.18376]
[1732577075759,0.05329,93830.0,93828.0,0.002]
[1732577075958,0.05329,93830.0,93828.0,0.001]
[1732577076167,0.68052,93829.0,93828.0,0.002]
[1732577076464,0.68052,93829.0,93816.0,0.00013379]
[1732577076465,0.053298,93817.0,93816.0,0.00013379]
[1732577076659,0.414098,93817.0,93816.0,0.00013379]
[1732577077662,0.415098,93817.0,93816.0,0.00013379]
[1732577078969,0.416098,93817.0,93816.0,0.00013379]
[1732577079166,0.056298,93817.0,93816.0,0.00013379]
[1732577079355,0.003,93817.0,93816.0,0.05343179]
[1732577079556,0.001,93817.0,93816.0,0.23819179]
[1732577079760,0.053294,93824.0,93816.0,0.18489379]
[1732577079955,0.053294,93824.0,93818.0,0.053297]
[1732577080465,0.053294,93823.0,93819.0,0.18376]
[1732577081165,0.0951852,93825.0,93819.0,0.18376]
[1732577081379,0.09570333,93824.0,93820.0,0.0472]
[1732577081666,0.09682334,93829.0,93828.0,0.053291]
[1732577081864,0.1170296,93830.0,93828.0,0.053291]
[1732577082259,0.09570333,93832.0,93830.0,0.05329]
[1732577082459,0.02130333,93833.0,93832.0,0.053289]
[1732577083061,0.12691361,93841.0,93831.0,0.18376]
[1732577083269,0.12691361,93841.0,93837.0,0.053286]
[1732577083463,0.3608,93842.0,93832.0,0.001]
[1732577084067,0.3608,93842.0,93839.0,0.053285]
[1732577085466,0.3608,93842.0,93831.0,0.19123651]
[1732577085669,0.3608,93842.0,93831.0,0.19023651]
[1732577085670,0.3638,93842.0,93831.0,0.19023651]
[1732577085873,0.3638,93842.0,93834.0,0.053288]
[1732577086262,0.3658,93842.0,93834.0,0.053288]
[1732577086461,0.053286,93838.0,93834.0,0.053288]
[1732577087468,0.3628,93842.0,93834.0,0.053288]
[1732577088070,0.416084,93842.0,93831.0,0.19123651]
[1732577088273,0.416084,93842.0,93836.0,0.053287]
[1732577088473,0.414084,93842.0,93836.0,0.053287]
[1732577089468,0.053285,93840.0,93831.0,0.19023651]
[1732577090186,0.053285,93840.0,93831.0,0.24352651]
[1732577091467,0.053285,93840.0,93831.0,0.19123651]
[1732577091673,0.053285,93840.0,93834.0,0.053288]
[1732577092069,0.3608,93842.0,93834.0,0.053288]
[1732577092272,0.053286,93838.0,93834.0,0.053288]
[1732577093467,0.053286,93838.0,93831.0,0.19023651]
[1732577093778,0.414084,93842.0,93836.0,0.053287]
[1732577094477,0.414084,93842.0,93837.0,0.18372]
[1732577094880,0.053285,93840.0,93837.0,0.18372]
[1732577095680,0.3618,93842.0,93837.0,0.18372]
[1732577095982,0.417084,93842.0,93837.0,0.18372]
[1732577096287,0.416084,93842.0,93837.0,0.18372]
[1732577096581,0.001,93840.0,93837.0,0.18372]
[1732577097876,0.002,93840.0,93837.0,0.18372]
[1732577098678,0.003,93840.0,93837.0,0.18372]
[1732577099477,0.053284,93841.0,93837.0,0.18372]
[1732577099783,0.3608,93842.0,93837.0,0.18372]
[1732577100080,0.053285,93840.0,93837.0,0.18372]
[1732577100283,0.3608,93842.0,93837.0,0.18372]
[1732577100482,0.3608,93842.0,93839.0,0.053285]
[1732577100683,0.414084,93842.0,93839.0,0.053285]
[1732577101076,0.414084,93842.0,93840.0,0.053284]
[1732577102385,0.414084,93842.0,93840.0,0.054284]
[1732577103286,0.414084,93842.0,93840.0,0.001]
[1732577103992,0.414084,93842.0,93840.0,0.002]
[1732577104178,0.31968,93841.0,93832.0,0.00011771]
[1732577104490,0.31968,93841.0,93810.0,0.24017339]
[1732577104491,0.053301,93812.0,93810.0,0.24017339]
[1732577104686,0.053301,93812.0,93811.0,0.18324]
[1732577104990,0.15864201,93832.0,93811.0,0.18324]
[1732577104991,0.12755772,93828.0,93827.0,0.053292]
[1732577105181,0.053286,93837.0,93833.0,0.053288]
[1732577105487,0.053285,93840.0,93824.0,0.18687239]
[1732577105679,0.053293,93825.0,93823.0,0.053294]
[1732577105879,0.053293,93825.0,93824.0,0.18324]
[1732577106682,0.053293,93825.0,93823.0,0.053294]
[1732577106881,0.053293,93825.0,93824.0,0.236534]
[1732577107081,0.053293,93825.0,93824.0,0.053294]
[1732577107297,0.053293,93825.0,93824.0,0.236534]
[1732577107592,0.05329,93831.0,93827.0,0.053292]
[1732577107786,0.12755772,93834.0,93824.0,0.18324]
[1732577107787,0.18084572,93834.0,93833.0,0.053289]
[1732577108089,0.3608,93835.0,93824.0,0.18324]
[1732577108090,0.3608,93835.0,93834.0,0.053288]
[1732577108687,0.414087,93835.0,93834.0,0.053288]
[1732577109687,0.3608,93835.0,93834.0,0.053288]
[1732577110195,0.3608,93835.0,93828.0,0.18687239]
[1732577110196,0.053289,93832.0,93828.0,0.18687239]
[1732577110390,0.053289,93832.0,93829.0,0.18687239]
[1732577111098,0.3608,93835.0,93832.0,0.053289]
[1732577111286,0.3608,93835.0,93829.0,0.18687239]
[1732577111591,0.05329,93831.0,93829.0,0.24016339]
[1732577112189,0.05329,93831.0,93829.0,0.054291]
[1732577112796,0.05329,93831.0,93830.0,0.18687239]
[1732577113595,0.05329,93831.0,93829.0,0.24216339]
[1732577114300,0.12755772,93832.0,93831.0,0.05329]
[1732577115496,0.12755772,93836.0,93834.0,0.053288]
[1732577115703,0.36192001,93843.0,93831.0,0.05329]
[1732577115704,0.12755772,93841.0,93835.0,0.18324]
[1732577115893,0.3608,93843.0,93842.0,0.053283]
[1732577117895,0.12755772,93845.0,93836.0,0.18687239]
[1732577118089,0.12755772,93846.0,93844.0,0.053282]
[1732577118494,0.12755772,93847.0,93846.0,0.053281]
[1732577118696,0.12755772,93847.0,93846.0,0.236521]
[1732577118991,0.05341402,93853.0,93846.0,0.236521]
[1732577118992,0.12755772,93848.0,93846.0,0.236521]
[1732577119191,0.12755772,93847.0,93846.0,0.236521]
[1732577119498,0.12755772,93848.0,93846.0,0.236521]
[1732577119800,0.006,93847.0,93846.0,0.236521]
[1732577119994,0.006,93847.0,93846.0,0.24291132]
[1732577121500,0.3608,93852.0,93848.0,0.05328]
[1732577121797,0.3608,93852.0,93850.0,0.053279]
[1732577122499,0.00013702,93853.0,93850.0,0.053279]
[1732577122500,0.00013702,93853.0,93852.0,0.053278]
[1732577122701,0.00013702,93853.0,93852.0,0.24015039]
[1732577122895,0.00013702,93853.0,93852.0,0.099578]
[1732577123498,0.00013702,93853.0,93852.0,0.28775024]
[1732577123700,0.00013702,93853.0,93852.0,0.099578]
[1732577124089,0.00013702,93853.0,93852.0,0.419218]
[1732577124699,0.0027,93872.0,93870.0,0.053267]
[1732577125008,0.36196,93875.0,93874.0,0.053265]
[1732577125191,0.0438,93892.0,93874.0,0.053265]
[1732577125192,0.52056202,93884.0,93878.0,0.053263]
[1732577125392,0.053261,93881.0,93878.0,0.053263]
[1732577125601,0.053261,93881.0,93879.0,0.00010992]
[1732577125794,0.3608,93884.0,93882.0,0.053261]
[1732577125995,0.15864201,93897.0,93879.0,0.00010992]
[1732577126202,0.21189401,93898.0,93884.0,0.10906484]
[1732577126407,0.053252,93898.0,93895.0,0.053253]
[1732577126621,0.1,93900.0,93896.0,0.053252]
[1732577126795,0.1,93900.0,93898.0,0.053251]
[1732577127101,0.1,93900.0,93899.0,0.1832]
[1732577128390,0.159251,93900.0,93899.0,0.1832]
[1732577128610,0.159251,93900.0,93899.0,0.1842]
[1732577128904,0.153251,93900.0,93899.0,0.1842]
[1732577129090,0.159251,93900.0,93899.0,0.1852]
[1732577130102,0.16049497,93900.0,93899.0,0.002]
[1732577130296,0.16049497,93900.0,93899.0,0.1852]
[1732577131213,0.10724397,93900.0,93899.0,0.1852]
[1732577131805,0.46804397,93900.0,93899.0,0.1852]
[1732577132407,0.10724397,93900.0,93899.0,0.1852832]
[1732577132809,0.10724397,93900.0,93899.0,0.2778832]
[1732577134602,0.03494397,93900.0,93899.0,0.28444141]
[1732577134802,0.02994397,93900.0,93899.0,0.28344141]
[1732577135118,0.02994397,93900.0,93899.0,0.1826832]
[1732577135811,0.07784397,93900.0,93899.0,0.1826832]
[1732577136709,0.07784397,93900.0,93899.0,8.32e-05]
[1732577136912,0.02994397,93900.0,93899.0,0.1826432]
[1732577139007,0.02994397,93900.0,93899.0,0.8629232]
[1732577139412,0.3608,93911.0,93899.0,0.9104232]
[1732577139615,0.3608,93911.0,93910.0,0.053245]
[1732577141100,0.3608,93911.0,93899.0,0.3608832]
[1732577141305,0.3608,93900.0,93899.0,8.32e-05]
[1732577141812,0.4533,93900.0,93899.0,8.32e-05]
[1732577142112,0.45476508,93900.0,93899.0,0.1826432]
[1732577142305,0.50891087,93900.0,93899.0,0.1826432]
[1732577142510,0.50236508,93900.0,93899.0,0.1826432]
[1732577142810,0.36226508,93900.0,93899.0,0.2358942]
[1732577143017,0.36226508,93900.0,93899.0,0.0533342]
[1732577143205,0.00146508,93900.0,93899.0,0.2358942]
[1732577144312,0.00246508,93900.0,93899.0,0.2358942]
[1732577145618,0.00246508,93900.0,93899.0,0.24240274]
[1732577145912,0.00246508,93900.0,93899.0,0.25152524]
[1732577146511,0.00246508,93900.0,93899.0,0.25148524]
[1732577146919,0.00246508,93900.0,93899.0,0.61228524]
[1732577147710,0.00329865,93900.0,93899.0,0.61228524]
[1732577148312,0.00329865,93900.0,93899.0,0.06896524]
[1732577148505,0.00329865,93900.0,93899.0,0.25148524]
[1732577148907,0.0039304,93900.0,93899.0,0.25148524]
[1732577150108,0.0039304,93900.0,93899.0,0.01571424]
[1732577150410,0.0960304,93900.0,93899.0,0.19823424]
[1732577151916,0.0039304,93900.0,93899.0,0.19823424]
[1732577154616,0.0039304,93900.0,93899.0,0.01571424]
[1732577154923,0.3608,93912.0,93911.0,0.053244]
[1732577155109,0.3608,93912.0,93911.0,0.500804]
[1732577155311,0.3608,93912.0,93911.0,0.683324]
[1732577155712,9.963e-05,93918.0,93911.0,0.683324]
[1732577155917,9.963e-05,93918.0,93917.0,0.053241]
[1732577156815,9.963e-05,93918.0,93917.0,0.0623635]
[1732577157219,9.963e-05,93918.0,93917.0,0.0633635]
[1732577157428,0.00409963,93918.0,93917.0,0.0633635]
[1732577157720,0.00409963,93918.0,93917.0,0.06347541]
[1732577158125,0.00209963,93918.0,93917.0,0.06347541]
[1732577158319,0.00209963,93918.0,93917.0,0.38291541]
[1732577158524,0.3608,93936.0,93934.0,0.053231]
[1732577158718,0.3608,93936.0,93935.0,0.18252]
[1732577158920,0.3608,93936.0,93935.0,0.1916425]
[1732577159420,0.3608,93936.0,93935.0,0.0091225]
[1732577159609,0.3608,93936.0,93935.0,0.1916425]
[1732577160021,0.3608,93936.0,93935.0,0.1926425]
[1732577160214,0.3628,93936.0,93935.0,0.1926425]
[1732577160919,0.3628,93936.0,93935.0,0.0101225]
[1732577161126,0.3628,93936.0,93935.0,0.1926425]
[1732577161628,0.3628,93936.0,93935.0,0.0101225]
[1732577161811,0.3628,93936.0,93917.0,0.05335291]
[1732577161812,0.73393615,93936.0,93917.0,0.05335291]
[1732577162017,0.053241,93918.0,93917.0,0.05335291]
[1732577162315,0.3608,93925.0,93924.0,0.053237]
[1732577162820,0.3628,93936.0,93935.0,0.053231]